bitfinex-derivatives/quotes_ETHF0:USTF0_20250606
["timestamp","ask_amount","ask_price","bid_price","bid_amount"]
[1749220100824,0.79631,2510.0,2509.6,1.99095]
[1749220101025,24.048,2510.1,2509.8,0.79633]
[1749220101026,1.81688669,2509.9,2509.8,0.79633]
[1749220101224,1.02058669,2509.9,2509.8,0.79633]
[1749220101419,1.81688669,2509.9,2509.8,3.43880414]
[1749220102527,1.81688669,2509.9,2509.8,2.64247414]
[1749220103023,1.81688669,2509.9,2509.8,2.22577236]
[1749220103223,0.79642,2509.6,2509.5,0.79641]
[1749220103424,0.79639,2509.7,2509.6,0.79637]
[1749220103628,1.02138031,2509.7,2509.6,0.79637]
[1749220103922,29.22197693,2510.5,2509.8,1.99083]
[1749220104223,1.02122387,2510.4,2510.0,3.2078]
[1749220104429,0.79621,2510.2,2510.1,0.79621]
[1749220104627,1.81743387,2510.2,2510.1,2.22577236]
[1749220104822,0.79627,2510.0,2509.9,2.12709]
[1749220105023,1.81749387,2510.0,2509.9,2.12709]
[1749220105220,1.02122387,2510.0,2509.9,4.76956414]
[1749220105425,0.79627,2510.0,2509.9,3.55657236]
[1749220105939,1.81809033,2510.0,2509.9,3.55657236]
[1749220106132,1.81809033,2510.0,2509.9,2.22577236]
[1749220106732,1.02182033,2510.0,2509.9,3.43877414]
[1749220107226,1.81809033,2510.0,2509.9,2.22577236]
[1749220107425,1.81809033,2510.0,2509.9,3.43877414]
[1749220107622,1.02182033,2510.0,2509.9,3.43877414]
[1749220107825,1.01375398,2510.0,2509.9,3.43877414]
[1749220108221,1.01375398,2510.0,2509.9,3.02207236]
[1749220108530,6.21225398,2510.0,2509.5,1.3499]
[1749220108730,0.79638,2509.7,2509.6,2.22577236]
[1749220109130,1.81013398,2509.7,2509.6,2.22577236]
[1749220109328,0.79642,2509.5,2509.4,0.07133351]
[1749220109632,0.79642,2509.5,2509.4,2.29710587]
[1749220109835,1.81017398,2509.5,2509.4,2.71380765]
[1749220110133,1.81017398,2509.5,2509.4,2.29710587]
[1749220110429,1.01375398,2509.5,2509.4,3.09356587]
[1749220110630,1.01375398,2509.6,2509.4,3.09356587]
[1749220110827,0.79639,2509.6,2509.5,2.22577236]
[1749220111026,1.81064628,2509.6,2509.5,2.22577236]
[1749220111224,1.01425628,2509.6,2509.5,3.02219236]
[1749220111931,1.01425628,2509.6,2509.5,4.31459236]
[1749220112135,1.01425628,2509.6,2509.5,4.73129414]
[1749220112635,19.71931,2509.9,2509.8,0.79633]
[1749220112834,19.93694107,2509.9,2509.6,6.11527236]
[1749220113131,0.00597693,2510.5,2509.8,2.22577236]
[1749220113337,1.01380105,2510.4,2510.3,0.79617]
[1749220113834,1.80994105,2510.4,2510.3,2.22577236]
[1749220114334,1.80983331,2510.4,2510.3,3.02194236]
[1749220114534,1.01369331,2510.4,2510.3,3.02194236]
[1749220114836,1.80983331,2510.4,2510.3,2.22577236]
[1749220115238,1.80983331,2510.4,2510.3,3.02194236]
[1749220115431,1.01369331,2510.4,2510.3,3.02194236]
[1749220116035,1.80983331,2510.4,2510.3,2.22577236]
[1749220116735,1.80983331,2510.4,2510.3,3.02194236]
[1749220117338,1.80983331,2510.4,2510.3,2.29710587]
[1749220118240,1.01369331,2510.4,2510.3,3.09327587]
[1749220118438,1.01369331,2510.4,2510.3,3.02194236]
[1749220118839,1.80983331,2510.4,2510.3,3.02194236]
[1749220119139,1.01369331,2510.4,2510.3,3.02194236]
[1749220119340,1.01369331,2510.4,2510.3,3.09327587]
[1749220119741,1.80983331,2510.4,2510.3,3.09327587]
[1749220120142,1.80983331,2510.4,2510.3,3.50997765]
[1749220120348,1.01369331,2510.4,2510.3,3.50997765]
[1749220120546,1.01369331,2510.4,2510.3,6.71777765]
[1749220122641,1.01369331,2510.4,2510.3,11.71777765]
[1749220122947,0.00597693,2510.5,2510.4,0.79614]
[1749220123248,1.01914054,2510.5,2510.4,4.99891236]
[1749220123544,0.80208693,2510.5,2510.4,5.41561414]
[1749220123947,0.00597693,2510.5,2510.4,10.53161414]
[1749220124442,0.32263935,2511.4,2510.4,10.53161414]
[1749220124443,0.7958,2511.5,2511.4,0.7958]
[1749220124647,1.01178506,2511.5,2511.2,1.98972]
[1749220124847,0.79574,2511.7,2511.6,0.79574]
[1749220125047,1.80646717,2511.7,2511.6,0.79576]
[1749220125249,1.80646717,2511.7,2511.6,3.02153236]
[1749220125445,1.01073717,2511.7,2511.6,3.02153236]
[1749220126243,1.80646717,2511.7,2511.6,2.22577236]
[1749220126447,1.80646717,2511.7,2511.4,0.00597693]
[1749220126448,0.79579,2511.5,2511.4,0.00597693]
[1749220126651,20.27537693,2511.9,2511.5,2.22577236]
[1749220126844,1.00963745,2511.8,2511.5,2.22577236]
[1749220127149,1.80538745,2511.7,2511.6,3.02152236]
[1749220127347,1.80538262,2511.7,2511.6,0.79575]
[1749220127540,0.79579,2511.5,2511.4,1.48438693]
[1749220127743,1.00963262,2511.7,2511.6,0.79575]
[1749220127744,0.79575,2511.7,2511.6,0.79575]
[1749220127950,1.80492185,2511.7,2511.6,0.79575]
[1749220128243,1.80492185,2511.7,2511.6,2.22577236]
[1749220129752,1.80492185,2511.7,2511.6,3.02153236]
[1749220129950,1.80492185,2511.7,2511.6,2.22577236]
[1749220130752,1.80492185,2511.7,2511.6,2.29710587]
[1749220130951,1.80492185,2511.7,2511.6,3.09286587]
[1749220131154,5.01272185,2511.7,2511.6,2.29710587]
[1749220131349,5.01272185,2511.7,2511.4,0.68857693]
[1749220131350,0.79579,2511.5,2511.4,0.00597693]
[1749220131548,1.98956,2511.4,2510.6,0.6754]
[1749220131850,0.79616,2510.4,2510.3,0.79615]
[1749220132039,0.79616,2510.4,2510.3,2.22577236]
[1749220132246,0.79614,2510.4,2510.3,2.64247414]
[1749220132548,0.79633,2509.8,2509.5,3.52553995]
[1749220132848,0.79636,2509.7,2509.6,2.22577236]
[1749220133050,4.5479,2510.1,2509.7,0.79636]
[1749220133239,0.79633,2509.8,2509.7,3.02213236]
[1749220133444,2.1364,2509.9,2509.8,2.22577236]
[1749220133650,2.1364,2509.9,2509.6,3.02216236]
[1749220133651,0.79638,2509.7,2509.6,3.02216236]
[1749220133951,0.79638,2509.7,2509.5,4.42091178]
[1749220134142,0.7963,2510.0,2509.8,0.79632]
[1749220134343,3.2078,2510.1,2509.6,3.50217236]
[1749220134538,1.99052,2510.2,2509.7,3.02212236]
[1749220134739,0.79633,2509.8,2509.7,2.22577236]
[1749220134944,5.01491952,2509.8,2509.7,2.22577236]
[1749220135258,1.80711952,2509.8,2509.7,2.22577236]
[1749220135748,1.00915904,2509.8,2509.7,2.22577236]
[1749220136057,19.69831,2509.9,2509.7,2.22577236]
[1749220136352,0.79631,2509.9,2509.8,2.22577236]
[1749220136554,0.79637,2509.7,2509.5,4.29857236]
[1749220136846,25.3853,2510.1,2509.5,6.70997236]
[1749220137049,0.79632,2509.9,2509.7,0.79635]
[1749220137254,0.79632,2509.9,2509.7,0.79633]
[1749220137455,0.79632,2509.9,2509.8,2.22577236]
[1749220137650,0.79638,2509.7,2509.6,3.02216236]
[1749220137852,27.37593,2510.1,2509.6,3.02216236]
[1749220138051,0.79635,2509.8,2509.7,2.22577236]
[1749220138452,25.3853,2510.1,2509.7,2.22577236]
[1749220138753,0.7963,2509.9,2509.8,2.22577236]
[1749220138954,1.8041144,2509.9,2509.8,2.22577236]
[1749220139351,0.7964,2509.6,2509.5,3.2078]
[1749220139653,0.00597693,2510.6,2509.6,1.99098]
[1749220139951,0.00597693,2510.6,2510.3,0.79615]
[1749220140157,0.00597693,2510.6,2510.0,1.47304]
[1749220140158,0.79619,2510.3,2510.0,1.47304]
[1749220140458,0.79619,2510.3,2510.0,4.27707236]
[1749220140753,0.7962,2510.2,2510.1,2.22577236]
[1749220140949,2.1225,2510.2,2510.1,2.22577236]
[1749220141151,2.1225,2510.2,2509.5,2.0513]
[1749220141152,0.79628,2510.0,2509.6,3.2078]
[1749220141351,0.79628,2510.0,2509.8,0.79632]
[1749220141550,5.90025,2510.1,2509.9,0.79628]
[1749220141747,0.79627,2510.0,2509.9,2.22577236]
[1749220141950,0.79632,2509.9,2509.6,3.2078]
[1749220142151,5.104,2510.1,2509.7,2.22577236]
[1749220142152,0.79633,2509.8,2509.7,2.22577236]
[1749220142355,1.3263,2510.0,2509.8,2.22577236]
[1749220142557,0.79636,2509.8,2509.7,2.22577236]
[1749220143156,3.2078,2509.9,2509.4,0.65367693]
[1749220143356,0.79639,2509.6,2509.5,2.22577236]
[1749220143954,0.79639,2509.6,2509.4,0.00597693]
[1749220143955,0.79643,2509.5,2509.4,0.00597693]
[1749220144154,2.09583,2509.5,2509.4,0.00597693]
[1749220144960,3.10118871,2509.5,2509.4,0.00597693]
[1749220145552,2.09583,2509.5,2509.4,0.00597693]
[1749220145758,1.2994,2509.5,2509.4,0.00597693]
[1749220145964,5.104,2509.6,2509.5,0.79642]
[1749220146163,5.9004,2509.6,2509.5,2.22577236]
[1749220146360,0.79635,2509.8,2509.5,2.22577236]
[1749220146565,5.90034,2509.8,2509.6,3.02215236]
[1749220146759,0.79637,2509.7,2509.6,2.22577236]
[1749220146957,0.79637,2509.7,2509.6,3.02217236]
[1749220147159,24.7636,2510.1,2509.6,2.64247414]
[1749220147362,5.105,2510.0,2509.7,2.22577236]
[1749220147563,0.79633,2509.8,2509.7,2.22577236]
[1749220147757,0.79632,2509.9,2509.7,3.02213236]
[1749220147958,0.79632,2509.9,2509.8,2.22577236]
[1749220148160,0.79636,2509.7,2509.6,2.91547236]
[1749220150068,0.79636,2509.7,2509.5,0.07133351]
[1749220150069,0.79639,2509.6,2509.5,0.07133351]
[1749220150265,5.90139,2509.6,2509.5,0.07133351]
[1749220150564,10.11387264,2509.6,2509.5,0.07133351]
[1749220150866,10.11402539,2509.6,2509.5,0.07133351]
[1749220151063,15.11402539,2509.6,2509.5,0.07133351]
[1749220151463,1.00483539,2509.6,2509.5,2.29710587]
[1749220151670,5.105,2509.9,2509.5,2.71380765]
[1749220151855,5.105,2509.9,2509.6,2.90017236]
[1749220152055,5.90131,2509.9,2509.8,0.79633]
[1749220152464,5.90131,2509.9,2509.8,3.02210236]
[1749220152660,5.105,2509.9,2509.8,3.02210236]
[1749220153264,5.9013,2509.9,2509.8,2.22577236]
[1749220153665,5.9013,2509.9,2509.8,3.02210236]
[1749220153964,5.105,2509.9,2509.8,2.22577236]
[1749220154166,5.9013,2509.9,2509.8,2.22577236]
[1749220154669,5.9013,2509.9,2509.8,3.02210236]
[1749220154870,5.105,2509.9,2509.8,3.43880414]
[1749220155069,5.9013,2509.9,2509.8,3.43880414]
[1749220155768,0.7963,2509.9,2509.8,3.43880414]
[1749220156264,8.3128,2510.4,2509.8,2.64247414]
[1749220156466,0.79621,2510.2,2510.1,0.79622]
[1749220156668,0.79621,2510.2,2510.1,2.22577236]
[1749220157066,6.00602394,2510.2,2509.6,0.6744]
[1749220157366,6.00602394,2510.2,2508.3,0.31546929]
[1749220157367,0.79665,2508.8,2508.7,0.6362]
[1749220157663,0.79674,2508.5,2508.4,1.07527236]
[1749220158257,5.11097693,2508.7,2508.4,1.49197414]
[1749220158477,0.00597693,2508.7,2508.6,3.2078]
[1749220158669,0.80265693,2508.7,2508.6,1.07527236]
[1749220158873,0.80265693,2508.7,2508.6,1.49197414]
[1749220160168,0.80265693,2508.7,2508.6,1.56330765]
[1749220161572,1.81135732,2508.7,2508.6,1.56330765]
[1749220161770,0.00597693,2508.7,2508.6,2.36001765]
[1749220162269,0.00597693,2508.7,2508.6,7.36001765]
[1749220162479,0.00597693,2508.7,2508.6,2.36001765]
[1749220164369,0.00597693,2508.7,2508.6,1.94331587]
[1749220164573,0.00597693,2508.7,2508.6,2.36001765]
[1749220167070,0.80265693,2508.7,2508.6,2.36001765]
[1749220167376,0.00597693,2508.7,2508.6,2.36001765]
[1749220168570,0.80265693,2508.7,2508.6,2.36001765]
[1749220169271,0.80265693,2508.7,2508.6,1.56330765]
[1749220169470,1.81077609,2508.7,2508.6,1.56330765]
[1749220169875,1.01409609,2508.7,2508.6,2.36001765]
[1749220170074,0.00597693,2508.7,2508.6,2.36001765]
[1749220170274,0.80265693,2508.7,2508.6,2.36001765]
[1749220170675,0.00597693,2508.7,2508.6,2.36001765]
[1749220171080,0.80265693,2508.7,2508.6,2.36001765]
[1749220171582,1.81084024,2508.7,2508.6,1.14660587]
[1749220172787,6.90784024,2508.7,2508.6,1.14660587]
[1749220173885,0.79681,2508.3,2508.2,0.00597693]
[1749220174085,10.11099016,2508.3,2508.2,0.00597693]
[1749220174292,0.79696,2507.8,2507.7,3.2078]
[1749220174486,0.79696,2507.8,2507.7,3.8407]
[1749220174790,0.79696,2507.8,2507.7,4.91597236]
[1749220175392,5.89495,2507.9,2507.8,0.79696]
[1749220175585,5.89495,2507.9,2507.8,1.07527236]
[1749220176492,0.79696,2507.8,2507.7,3.8407]
[1749220176991,0.79696,2507.8,2507.7,4.91597236]
[1749220177193,5.098,2507.9,2507.8,0.79696]
[1749220177390,0.79696,2507.8,2507.7,3.8407]
[1749220177692,5.098,2507.9,2507.8,1.07527236]
[1749220177693,5.89495,2507.9,2507.8,1.07527236]
[1749220178094,0.79687,2508.1,2508.0,0.79689]
[1749220178296,0.79691,2508.0,2507.9,1.07527236]
[1749220180989,0.6457,2508.3,2507.9,1.49197414]
[1749220181193,5.099,2508.4,2508.2,1.07527236]
[1749220181394,5.89577,2508.4,2508.3,1.71377236]
[1749220181892,5.89577,2508.4,2508.3,2.92728414]
[1749220182093,5.89577,2508.4,2508.3,2.13047414]
[1749220182390,5.89577,2508.4,2508.3,2.92728414]
[1749220182595,5.89577,2508.4,2508.3,2.13047414]
[1749220183498,6.89769073,2508.4,2508.3,2.13047414]
[1749220186893,1.00192073,2508.4,2508.3,5.33827414]
[1749220187096,3.96521183,2509.6,2508.9,1.99149]
[1749220187288,1.7926831,2510.4,2509.5,5.19887]
[1749220187495,1.7926831,2510.4,2509.7,3.2078]
[1749220187794,1.7926831,2510.4,2509.6,2.0342]
[1749220187795,5.0004831,2510.4,2509.6,2.0342]
[1749220187998,1.99065,2510.1,2509.4,4.00426]
[1749220188204,1.39137693,2510.0,2509.5,0.80239693]
[1749220188395,1.39137693,2510.0,2509.5,0.00597693]
[1749220188396,0.79638,2509.7,2509.5,0.00597693]
[1749220188600,4.59917693,2510.0,2509.5,0.00597693]
[1749220188801,0.79637,2509.7,2509.5,0.80238693]
[1749220188999,1.3515,2509.9,2509.5,0.00597693]
[1749220189000,2.6234,2509.9,2509.5,0.00597693]
[1749220189302,0.79635,2509.8,2509.5,0.80239693]
[1749220189502,3.41972,2509.9,2509.5,0.80239693]
[1749220189704,0.6845,2509.9,2509.7,4.00416]
[1749220190099,24.79526693,2510.0,2509.7,4.00414]
[1749220190301,24.79526693,2510.0,2509.7,3.2078]
[1749220190508,0.7963,2509.9,2509.7,3.2078]
[1749220190705,0.7963,2509.9,2509.7,4.00415]
[1749220190907,0.79633,2509.8,2509.7,3.2078]
[1749220191405,23.99897693,2510.0,2509.7,4.00416]
[1749220191406,0.79632,2509.9,2509.7,4.00416]
[1749220192202,23.99897693,2510.0,2509.7,3.2078]
[1749220192506,23.99897693,2510.0,2509.9,0.7963]
[1749220192707,0.79631,2509.9,2509.7,4.00415]
[1749220192909,23.99897693,2510.0,2509.7,3.2078]
[1749220193108,18.90097693,2510.0,2509.7,3.2078]
[1749220193305,19.69724693,2510.0,2509.9,0.7963]
[1749220193509,18.90097693,2510.0,2509.9,0.7963]
[1749220194406,0.00597693,2510.0,2509.9,0.7963]
[1749220194915,0.00597693,2510.0,2509.7,3.2078]
[1749220195108,0.00597693,2510.0,2509.5,0.07731044]
[1749220195109,0.79639,2509.6,2509.5,0.07731044]
[1749220195610,0.79639,2509.6,2509.5,0.00597693]
[1749220195812,5.79639,2509.6,2509.5,0.00597693]
[1749220196114,0.79665,2508.8,2508.7,3.2078]
[1749220197712,0.79665,2508.9,2508.7,4.00446]
[1749220198005,0.79664,2508.9,2508.7,4.00446]
[1749220198215,0.79664,2508.9,2508.8,0.79665]
[1749220199112,40.8,2509.1,2509.0,0.79658]
[1749220199319,59.687,2509.1,2509.0,4.00438]
[1749220199516,41.59655,2509.1,2509.0,3.2078]
[1749220199717,0.79662,2508.9,2508.8,0.79663]
[1749220200514,1.2977,2509.1,2508.7,3.2078]
[1749220200714,0.79663,2508.9,2508.8,0.79662]
[1749220200911,1.2977,2509.1,2508.7,3.2078]
[1749220201114,0.79665,2508.8,2508.7,3.2078]
[1749220201714,1.9285,2509.1,2508.7,3.2078]
[1749220202013,0.79662,2508.9,2508.8,0.79664]
[1749220202214,18.886,2509.0,2508.7,3.2078]
[1749220202608,0.79671,2508.6,2508.5,0.00597693]
[1749220203012,0.7969,2508.1,2507.9,3.8737]
[1749220203322,0.7969,2508.0,2507.9,4.67062]
[1749220203610,0.79689,2508.1,2507.9,4.67061]
[1749220203816,0.79689,2508.1,2507.8,1.9738]
[1749220203817,0.79693,2507.9,2507.8,0.6897]
[1749220204012,0.797,2507.7,2507.6,0.00597693]
[1749220204812,0.797,2507.7,2507.6,0.80300693]
[1749220205114,0.797,2507.7,2507.6,0.00597693]
[1749220206516,0.797,2507.7,2507.6,0.80300693]
[1749220207015,0.797,2507.7,2507.6,0.00597693]
[1749220207317,0.79695,2507.9,2507.8,0.79696]
[1749220207516,0.00597693,2508.1,2508.0,0.7969]
[1749220207710,23.98697693,2508.1,2508.0,0.7969]
[1749220208315,24.78384693,2508.1,2508.0,0.7969]
[1749220208509,0.7969,2508.0,2507.9,0.79691]
[1749220208719,23.98697693,2508.1,2507.8,3.2078]
[1749220209013,0.79691,2508.0,2507.9,0.79691]
[1749220209214,5.092,2508.8,2508.6,0.79668]
[1749220209417,3.2078,2509.5,2509.1,0.79653]
[1749220209610,5.092,2509.7,2509.3,3.2078]
[1749220209611,0.79646,2509.4,2509.3,3.2078]
[1749220210208,5.88836,2509.7,2509.3,3.2078]
[1749220210410,0.79642,2509.5,2509.4,1.3339]
[1749220210618,0.00597693,2509.6,2509.3,4.00429]
[1749220210821,0.79646,2509.4,2509.3,3.2078]
[1749220211318,0.79652,2509.2,2509.1,0.00597693]
[1749220212217,2.09942,2509.2,2509.1,0.00597693]
[1749220214317,2.09942,2509.2,2509.1,6.93e-06]
[1749220214514,3.01977404,2509.2,2509.1,6.93e-06]
[1749220215425,26.99877404,2509.2,2509.1,6.93e-06]
[1749220216320,26.07742,2509.2,2509.1,6.93e-06]
[1749220217422,24.77452,2509.2,2509.1,6.93e-06]
[1749220218219,0.00597693,2509.6,2509.1,3.20780693]
[1749220218521,0.79649,2509.3,2509.2,0.6427]
[1749220219423,0.79652,2509.2,2509.1,6.93e-06]
[1749220219827,1.71804502,2509.2,2509.1,6.93e-06]
[1749220220122,25.69404502,2509.2,2509.1,6.93e-06]
[1749220220331,24.77252,2509.2,2509.1,6.93e-06]
[1749220220525,25.6942626,2509.2,2509.1,6.93e-06]
[1749220220926,25.6932626,2509.2,2509.1,6.93e-06]
[1749220221128,1.7182626,2509.2,2509.1,6.93e-06]
[1749220221433,25.6932626,2509.2,2509.1,6.93e-06]
[1749220221626,24.77152,2509.2,2509.1,6.93e-06]
[1749220221825,5.091,2509.3,2509.1,3.20780693]
[1749220222026,0.79652,2509.2,2509.1,3.20780693]
[1749220223135,0.79652,2509.2,2509.1,4.00433693]
[1749220223429,0.79652,2509.2,2509.1,3.20780693]
[1749220223829,1.71982883,2509.2,2509.1,3.20780693]
[1749220224229,5.086,2509.4,2509.1,4.57870693]
[1749220224424,0.9230545,2509.3,2509.1,3.20780693]
[1749220224629,0.79652,2509.2,2509.1,3.20780693]
[1749220225027,0.79652,2509.2,2509.1,6.93e-06]
[1749220225523,5.92347013,2509.2,2507.7,3.2078]
[1749220225728,0.79699,2507.8,2507.7,3.2078]
[1749220226429,0.797,2507.7,2507.6,0.6928]
[1749220226827,0.79706,2507.5,2507.4,0.00597693]
[1749220228633,1.71939255,2507.5,2507.4,0.00597693]
[1749220229935,1.71888456,2507.5,2507.4,0.00597693]
[1749220230434,0.79706,2507.5,2507.4,0.00597693]
[1749220231925,4.5164,2507.8,2507.4,0.00597693]
[1749220232127,0.00597693,2507.9,2507.5,3.2078]
[1749220232533,0.00597693,2507.9,2507.8,3.2078]
[1749220232736,0.00597693,2507.9,2507.8,4.00476]
[1749220233035,0.00597693,2507.9,2507.8,3.2078]
[1749220233236,0.00597693,2507.9,2507.8,4.00476]
[1749220233929,0.00597693,2507.9,2507.8,3.2078]
[1749220234132,0.79703,2507.6,2507.5,3.2078]
[1749220235037,0.79703,2507.6,2507.4,0.00597693]
[1749220235038,0.79706,2507.5,2507.4,0.00597693]
[1749220237625,0.79706,2507.5,2507.4,6.93e-06]
[1749220237828,8.03040076,2507.5,2507.4,6.93e-06]
[1749220238228,65.57206,2507.5,2507.4,6.93e-06]
[1749220239424,40.8,2507.5,2507.4,0.79709693]
[1749220239637,5.88506,2507.5,2507.4,6.93e-06]
[1749220239831,5.88506,2507.5,2507.4,3.20780693]
[1749220240334,5.88506,2507.5,2507.4,6.93e-06]
[1749220240532,0.79706,2507.5,2507.4,6.93e-06]
[1749220240841,24.77306,2507.5,2507.4,6.93e-06]
[1749220241135,5.088,2507.5,2507.4,6.93e-06]
[1749220241341,5.88506,2507.5,2507.4,0.79709693]
[1749220241640,18.888,2507.6,2507.5,0.79703]
[1749220241641,5.88504,2507.6,2507.5,0.79703]
[1749220241834,0.79706,2507.5,2507.4,4.00487693]
[1749220242137,0.79706,2507.5,2507.4,3.20780693]
[1749220242346,0.79706,2507.5,2507.4,6.93e-06]
[1749220245940,5.79706,2507.5,2507.4,6.93e-06]
[1749220246148,7.98478049,2507.5,2507.4,6.93e-06]
[1749220246448,9.26878049,2507.5,2507.4,6.93e-06]
[1749220247338,4.26878049,2507.5,2507.4,6.93e-06]
[1749220247648,33.24578049,2507.5,2507.4,6.93e-06]
[1749220249437,0.79734,2506.6,2506.5,0.6437]
[1749220249740,0.79741,2506.4,2506.3,0.6867]
[1749220249941,0.79739,2506.5,2506.3,0.6867]
[1749220250243,0.79741,2506.4,2506.3,0.6867]
[1749220250547,0.79739,2506.5,2506.4,0.79739]
[1749220250934,0.00597693,2506.6,2506.5,0.79738]
[1749220251143,0.80331693,2506.6,2506.5,4.00518]
[1749220251338,0.80331693,2506.6,2506.5,3.2078]
[1749220252949,0.00597693,2506.6,2506.5,4.00518]
[1749220253147,0.00597693,2506.6,2506.5,9.00518]
[1749220253347,0.79718,2507.2,2506.8,1.9932]
[1749220253649,0.79718,2507.2,2507.1,0.79717]
[1749220253849,0.79719,2507.1,2507.0,4.00499]
[1749220254247,0.79719,2507.1,2507.0,9.00499]
[1749220254451,0.79719,2507.1,2507.0,3.2078]
[1749220254648,0.79719,2507.1,2507.0,4.00502]
[1749220254848,0.79719,2507.1,2507.0,3.2078]
[1749220255448,0.79722,2507.0,2506.9,0.6348]
[1749220256350,0.79722,2507.0,2506.9,1.43205]
[1749220256552,0.00597693,2507.3,2507.2,0.79715]
[1749220256846,0.79705,2507.6,2507.5,0.79706]
[1749220257047,1.71645987,2507.6,2507.5,4.00486]
[1749220257248,1.71645987,2507.6,2507.5,3.2078]
[1749220257444,0.91940987,2507.6,2507.5,4.00486]
[1749220257647,5.086,2507.7,2507.6,0.79703]
[1749220257851,5.086,2507.7,2507.6,2.05713]
[1749220258357,5.88299,2507.7,2507.6,1.2601]
[1749220258748,5.086,2507.7,2507.6,2.05713]
[1749220259357,5.88299,2507.7,2507.6,2.05713]
[1749220259554,5.086,2507.7,2507.6,2.05713]
[1749220260154,0.00597693,2507.9,2507.8,0.79696]
[1749220260360,0.00597693,2507.9,2507.8,4.00476]
[1749220260556,0.00597693,2507.9,2507.8,9.00476]
[1749220261356,0.00597693,2507.9,2507.8,4.00476]
[1749220261558,0.00597693,2507.9,2507.8,9.00476]
[1749220261953,5.086,2508.3,2508.2,0.79684]
[1749220262455,0.79677,2508.5,2508.4,0.79675]
[1749220262657,0.7968,2508.3,2508.2,2.13461]
[1749220263149,0.00597693,2508.5,2508.2,1.3378]
[1749220263452,0.79693,2507.9,2507.8,3.2078]
[1749220263958,0.79693,2507.9,2507.8,4.00476]
[1749220264257,0.79693,2507.9,2507.8,3.2078]
[1749220264662,0.79692,2508.0,2507.9,0.79691]
[1749220264847,0.79693,2507.9,2507.8,3.2078]
[1749220265248,0.79699,2507.7,2507.6,0.63537693]
[1749220265650,4.00479,2507.7,2507.6,0.63537693]
[1749220265957,1.72974083,2507.7,2507.6,0.00597693]
[1749220266160,3.10014083,2507.7,2507.6,0.00597693]
[1749220266360,0.79715,2507.2,2507.1,0.6908]
[1749220266761,0.79733,2506.7,2506.5,4.5246]
[1749220266952,5.88228,2506.9,2506.5,4.5246]
[1749220267154,5.085,2506.9,2506.7,0.7973]
[1749220267354,5.88227,2506.9,2506.7,0.7973]
[1749220267858,5.88227,2506.9,2506.8,0.79728]
[1749220268060,5.09097693,2507.1,2507.0,0.79722]
[1749220268555,5.09097693,2507.1,2506.9,0.79723]
[1749220268754,5.09097693,2507.1,2506.5,0.00597693]
[1749220268755,0.7973,2506.8,2506.6,0.79732]
[1749220268960,0.7973,2506.8,2506.7,0.79731]
[1749220269159,0.79723,2507.0,2506.8,0.79728]
[1749220269362,5.09097693,2507.1,2506.7,0.79729]
[1749220269561,0.79731,2506.7,2506.6,1.45832]
[1749220270052,0.79727,2506.9,2506.6,0.661]
[1749220270257,0.79724,2507.0,2506.9,0.79724]
[1749220270554,0.79724,2507.0,2506.9,1.3711]
[1749220270757,0.79725,2506.9,2506.8,3.2078]
[1749220271354,0.79725,2506.9,2506.8,4.00506]
[1749220272160,0.79725,2506.9,2506.8,3.2078]
[1749220272557,0.00597693,2507.1,2506.8,4.00508]
[1749220272758,0.00597693,2507.1,2506.9,2.06105]
[1749220272759,0.79724,2507.0,2506.9,2.06105]
[1749220272964,0.80318693,2507.1,2507.0,0.79722]
[1749220273158,0.00597693,2507.1,2507.0,0.79722]
[1749220273368,5.086,2508.0,2507.2,1.99288]
[1749220273665,0.79706,2507.5,2507.4,3.2078]
[1749220273859,0.79709,2507.4,2507.3,1.2996]
[1749220274163,0.79709,2507.4,2507.3,2.09672]
[1749220274357,0.00597693,2507.6,2507.5,0.79706]
[1749220274564,0.00597693,2507.6,2507.5,4.00486]
[1749220274759,5.88292,2508.0,2507.9,0.79693]
[1749220274966,0.79693,2507.9,2507.8,4.07607351]
[1749220275265,0.79693,2507.9,2507.8,0.07133351]
[1749220275966,5.086,2508.0,2507.9,0.79693]
[1749220276361,5.8829,2508.0,2507.9,0.79693]
[1749220276564,0.00597693,2508.1,2508.0,0.7969]
[1749220277066,0.00597693,2508.1,2508.0,5.7969]
[1749220277368,0.00597693,2508.1,2508.0,0.7969]
[1749220277756,0.00597693,2508.1,2508.0,5.7969]
[1749220278759,0.00597693,2508.1,2507.9,1.46542]
[1749220278965,0.7969,2508.0,2507.9,1.46542]
[1749220279168,0.00597693,2508.1,2508.0,0.7969]
[1749220279755,0.00597693,2508.1,2507.9,1.46541]
[1749220279961,0.80286693,2508.1,2508.0,0.7969]
[1749220280865,0.80286693,2508.1,2508.0,0.86823351]
[1749220281066,0.80286693,2508.1,2508.0,0.07133351]
[1749220283267,4.94380537,2508.1,2508.0,0.07133351]
[1749220283666,6.29230537,2508.1,2508.0,0.07133351]
[1749220283861,6.29230537,2508.1,2507.4,3.2078]
[1749220283862,1.99233,2507.9,2507.4,3.2078]
[1749220284071,0.79703,2507.6,2507.5,0.79706]
[1749220284268,0.79706,2507.5,2507.4,3.2078]
[1749220286068,0.79706,2507.5,2507.4,4.00489]
[1749220286264,5.20022,2507.8,2507.4,4.00489]
[1749220286265,3.2078,2507.8,2507.4,3.2078]
[1749220286564,0.79706,2507.5,2507.4,4.00486]
[1749220286773,0.79704,2507.6,2507.5,0.79702]
[1749220286971,0.79706,2507.5,2507.4,4.00487]
[1749220288066,0.79706,2507.5,2507.4,3.2078]
[1749220289472,0.79706,2507.5,2507.4,4.00489]
[1749220289869,0.79706,2507.5,2507.4,3.2078]
[1749220290368,0.79716,2507.2,2507.1,3.2078]
[1749220290664,0.79713,2507.3,2507.1,3.2078]
[1749220290863,0.79713,2507.4,2507.3,0.7971]
[1749220291662,0.79715,2507.3,2507.2,0.79714]
[1749220291865,5.082,2507.7,2507.5,0.79702]
[1749220291866,0.79706,2507.6,2507.5,0.79702]
[1749220292066,0.00597693,2508.1,2508.0,0.07133351]
[1749220292273,0.00597693,2508.1,2508.0,0.86823351]
[1749220292774,0.80283693,2508.1,2508.0,2.14683351]
[1749220292969,0.80283693,2508.1,2508.0,1.55883351]
[1749220294169,0.80283693,2508.1,2508.0,0.76193351]